bitfinex-derivatives/quotes_SOLF0:USTF0_20250523
["timestamp","ask_amount","ask_price","bid_price","bid_amount"]
[1747971283581,0.0398748,184.27,184.25,5.4267]
[1747971285776,0.0398748,184.27,184.26,5.4266]
[1747971287782,123.88349148,184.33,184.23,4.82231515]
[1747971288484,123.88349148,184.33,184.31,5.425]
[1747971288880,118.86,184.33,184.3,0.0372525]
[1747971289685,118.86,184.33,184.31,5.4251]
[1747971290088,118.86,184.33,184.3,0.0372525]
[1747971290286,124.2848,184.33,184.3,0.0372525]
[1747971290486,118.86,184.33,184.3,0.0372525]
[1747971290683,5.4251,184.31,184.3,0.0372525]
[1747971294686,5.4249,184.32,184.3,0.0372525]
[1747971294897,118.84,184.31,184.3,0.0372525]
[1747971295985,124.2651,184.31,184.3,0.0372525]
[1747971298592,118.84,184.31,184.23,4.21922259]
[1747971298993,118.84,184.31,184.23,9.64652259]
[1747971299589,118.84,184.31,184.25,0.03493831]
[1747971299781,0.03532146,184.29,184.25,0.03493831]
[1747971299987,5.4266,184.26,184.25,0.03493831]
[1747971300591,5.4266,184.26,184.23,4.21922259]
[1747971300592,118.84,184.26,184.23,4.21922259]
[1747971300790,118.84,184.26,184.18,5.4289]
[1747971301185,5.4283,184.21,184.18,5.4289]
[1747971301597,5.46800147,184.21,184.18,5.46969741]
[1747971301991,5.4284,184.2,184.18,0.04079741]
[1747971303399,5.4284,184.2,184.18,5.46969741]
[1747971303593,124.32790147,184.21,184.18,5.46969741]
[1747971303794,118.89970147,184.21,184.18,0.04079741]
[1747971304101,118.86,184.26,184.18,0.04079741]
[1747971304301,118.86,184.27,184.18,4.82231515]
[1747971304598,118.86,184.27,184.26,5.4266]
[1747971305201,0.03914389,184.28,184.27,5.4263]
[1747971305696,0.03914389,184.28,184.25,0.03896583]
[1747971306200,5.4266,184.26,184.25,0.03896583]
[1747971306499,124.2866,184.26,184.25,0.03896583]
[1747971308310,118.86,184.26,184.25,0.03896583]
[1747971308602,118.86,184.26,184.25,5.46586583]
[1747971308801,0.03914389,184.28,184.25,0.03896583]
[1747971309102,0.03914389,184.28,184.27,5.4263]
[1747971309501,0.03914389,184.28,184.25,0.03896583]
[1747971309806,0.03914389,184.28,184.26,5.4263]
[1747971310104,0.03914389,184.28,184.25,0.03896583]
[1747971310908,0.03914389,184.28,184.26,5.4266]
[1747971311200,0.03914389,184.28,184.25,0.03896583]
[1747971311393,0.03914389,184.28,184.25,5.46566583]
[1747971312096,0.03914389,184.28,184.25,0.03896583]
[1747971312608,5.4265,184.27,184.25,0.03896583]
[1747971312901,0.03914389,184.28,184.25,0.03896583]
[1747971313907,5.4266,184.26,184.25,0.03896583]
[1747971314405,5.4264,184.27,184.25,0.03896583]
[1747971315109,5.46524389,184.28,184.25,0.03896583]
[1747971315816,5.4264,184.27,184.25,0.03896583]
[1747971316911,5.46524389,184.28,184.25,5.46576583]
[1747971317114,0.03914389,184.28,184.25,0.03896583]
[1747971317409,5.4265,184.27,184.25,0.03896583]
[1747971317611,0.03914389,184.28,184.25,0.03896583]
[1747971318105,5.46534389,184.28,184.25,5.46586583]
[1747971318311,5.46534389,184.28,184.25,0.03896583]
[1747971318312,0.03914389,184.28,184.25,0.03896583]
[1747971318513,0.03914389,184.28,184.27,5.4263]
[1747971318909,118.7,184.31,184.25,0.03896583]
[1747971319111,118.7,184.31,184.3,5.4254]
[1747971319409,5.0653288,184.33,184.26,1.9521]
[1747971319604,5.0653288,184.33,184.32,5.4248]
[1747971319802,0.0352878,184.34,184.31,0.03929346]
[1747971320205,6.72164309,184.35,184.31,0.03929346]
[1747971320699,6.72164309,184.35,184.34,5.4242]
[1747971321905,132.01248054,184.42,184.36,5.4236]
[1747971322115,6.73950948,184.37,184.36,5.4236]
[1747971322312,13.33248054,184.42,184.36,5.42]
[1747971322515,13.33248054,184.42,184.41,5.4222]
[1747971322712,13.33248054,184.42,184.37,0.04124941]
[1747971322713,118.68,184.46,184.37,0.04124941]
[1747971323120,124.1007,184.46,184.37,0.04124941]
[1747971323304,118.68,184.46,184.37,0.04124941]
[1747971325021,5.4214,184.44,184.4,5.4223]
[1747971325317,118.68,184.46,184.4,0.03659169]
[1747971325718,5.4221,184.42,184.4,0.03659169]
[1747971326018,118.68,184.46,184.4,0.03659169]
[1747971327222,5.4214,184.44,184.4,5.45889169]
[1747971327520,118.68,184.46,184.4,0.03659169]
[1747971327924,7.3788,184.49,184.44,5.4211]
[1747971328121,1.9588,184.49,184.45,0.04044951]
[1747971328309,5.4206,184.47,184.45,0.03573457]
[1747971328515,1.9588,184.49,184.45,0.03573457]
[1747971329526,5.4207,184.46,184.45,0.03573457]
[1747971330021,5.4203,184.48,184.45,0.03573457]
[1747971330227,118.62,184.5,184.45,0.03573457]
[1747971331218,5.4221,184.42,184.38,5.4228]
[1747971331628,5.4221,184.42,184.35,221.66]
[1747971332016,5.4223,184.41,184.35,221.66]
[1747971332316,0.03502184,184.4,184.36,0.03542271]
[1747971332529,0.03502184,184.4,184.38,5.423]
[1747971333331,0.03502184,184.4,184.39,5.4228]
[1747971336528,0.03502184,184.4,184.36,0.03542271]
[1747971336734,118.4,184.39,184.36,0.03542271]
[1747971337032,118.4,184.39,184.36,5.45882271]
[1747971337234,0.03502184,184.4,184.36,0.03542271]
[1747971337735,0.03502184,184.4,184.39,5.4228]
[1747971337928,118.4,184.47,184.37,229.15517787]
[1747971338241,118.4,184.47,184.44,5.421]
[1747971338733,118.4,184.47,184.38,1.8311]
[1747971338927,118.4,184.47,184.41,0.03985352]
[1747971339128,5.4209,184.46,184.41,0.03985352]
[1747971339335,118.4,184.47,184.41,0.03985352]
[1747971339633,118.4,184.5,184.41,0.03985352]
[1747971339831,123.8195,184.5,184.41,0.03985352]
[1747971340035,118.4,184.5,184.41,0.03985352]
[1747971340241,5.4199,184.49,184.41,0.03985352]
[1747971340539,5.4199,184.49,184.45,5.4208]
[1747971340729,5.4199,184.49,184.45,0.04161059]
[1747971341233,5.4201,184.48,184.45,0.04161059]
[1747971341836,5.4199,184.49,184.45,5.46261059]
[1747971342034,118.4,184.5,184.45,0.04161059]
[1747971342338,5.4207,184.46,184.45,0.04161059]
[1747971342834,118.4,184.5,184.45,0.04161059]
[1747971343736,5.4207,184.46,184.45,0.04161059]
[1747971345933,0.03532185,184.47,184.37,118.4]
[1747971346234,0.03532185,184.47,184.27,7.71517787]
[1747971346531,10.8406,184.48,184.28,108.66670545]
[1747971346729,7.71517787,184.49,184.28,108.66670545]
[1747971346931,0.03665683,184.41,184.38,0.0351823]
[1747971347228,7.71517787,184.49,184.33,5.4243]
[1747971347229,5.4236,184.37,184.33,5.4243]
[1747971347552,10.841,184.47,184.28,108.66670545]
[1747971347731,118.4,184.46,184.31,126.11517787]
[1747971348035,0.04114271,184.4,184.37,0.03469151]
[1747971348237,0.04114271,184.4,184.38,5.423]
[1747971348735,0.04114271,184.4,184.37,0.03469151]
[1747971348937,0.04114271,184.4,184.39,5.4228]
[1747971350842,5.46384271,184.4,184.37,5.45789151]
[1747971352436,0.04114271,184.4,184.38,5.423]
[1747971352643,0.04114271,184.4,184.37,0.03469151]
[1747971353233,0.04114271,184.4,184.39,5.4228]
[1747971353527,0.04114271,184.4,184.37,0.03469151]
[1747971354042,0.04114271,184.4,184.39,5.4228]
[1747971354537,0.04114271,184.4,184.38,5.4229]
[1747971354936,0.04114271,184.4,184.37,0.03469151]
[1747971355136,0.04114271,184.4,184.39,5.4228]
[1747971355437,0.04114271,184.4,184.37,0.03469151]
[1747971355637,0.04114271,184.4,184.38,5.4228]
[1747971355836,0.04114271,184.4,184.37,0.03469151]
[1747971356444,0.04114271,184.4,184.37,5.45799151]
[1747971356838,0.04114271,184.4,184.37,0.03469151]
[1747971357039,0.04114271,184.4,184.38,5.4228]
[1747971357941,0.04114271,184.4,184.37,5.45789151]
[1747971358744,5.46364271,184.4,184.37,0.03469151]
[1747971359942,5.4228,184.39,184.37,0.03469151]
[1747971360144,0.04114271,184.4,184.37,0.03469151]
[1747971360346,0.04114271,184.4,184.29,4.21922259]
[1747971361041,0.04114271,184.4,184.3,7.71517787]
[1747971361346,0.04114271,184.4,184.39,5.4228]
[1747971362241,0.04114271,184.4,184.38,0.03820529]
[1747971363448,0.04114271,184.4,184.38,5.46100529]
[1747971363848,0.04114271,184.4,184.38,0.03820529]
[1747971364052,0.04114271,184.4,184.39,5.4228]
[1747971366651,4.271e-05,184.4,184.39,5.4228]
[1747971368155,118.4,184.46,184.45,5.421]
[1747971368353,118.4,184.46,184.39,118.2]
[1747971368550,118.4,184.46,184.44,5.4211]
[1747971368952,118.4,184.46,184.39,118.2]
[1747971369156,0.03901865,184.44,184.41,0.039051]
[1747971369956,0.03901865,184.44,184.41,5.461051]
[1747971370156,0.03901865,184.44,184.41,0.039051]
[1747971370560,5.46031865,184.44,184.41,5.461151]
[1747971370748,0.03901865,184.44,184.41,0.039051]
[1747971371256,5.4218,184.43,184.41,0.039051]
[1747971371652,0.03901865,184.44,184.41,0.039051]
[1747971372256,5.4219,184.42,184.41,0.039051]
[1747971373055,5.4226,184.4,184.37,9.64252259]
[1747971373357,0.03901865,184.44,184.37,9.64252259]
[1747971373655,0.03901865,184.44,184.37,4.21922259]
[1747971373848,5.4225,184.4,184.39,0.03598632]
[1747971374560,118.18,184.41,184.35,5.62670545]
[1747971374951,5.4245,184.34,184.31,5.4249]
[1747971375159,118.18,184.35,184.3,5.62670545]
[1747971375358,0.03732391,184.34,184.31,0.03777814]
[1747971375760,0.03732391,184.34,184.33,5.4245]
[1747971376459,0.03732391,184.34,184.31,0.03777814]
[1747971377054,0.03732391,184.34,184.32,5.4246]
[1747971377254,0.03732391,184.34,184.31,0.03777814]
[1747971377456,0.03732391,184.34,184.31,5.46267814]
[1747971378059,0.03732391,184.34,184.32,5.4248]
[1747971378260,0.03732391,184.34,184.31,0.03777814]
[1747971378561,0.03732391,184.34,184.33,5.4245]
[1747971379659,0.03732391,184.34,184.31,0.03777814]
[1747971380259,0.03732391,184.34,184.32,5.4246]
[1747971380659,0.03732391,184.34,184.31,0.03777814]
[1747971381055,0.03732391,184.34,184.32,5.4248]
[1747971381259,0.03732391,184.34,184.31,0.03777814]
[1747971381653,2.391e-05,184.34,184.33,5.4245]
[1747971384558,2.391e-05,184.34,184.32,5.4247]
[1747971385063,2.391e-05,184.34,184.31,0.03777814]
[1747971386258,5.4248,184.32,184.31,0.03777814]
[1747971386564,2.391e-05,184.34,184.31,0.03777814]
[1747971386965,2.391e-05,184.34,184.33,5.4245]
[1747971388465,2.391e-05,184.34,184.31,0.03777814]
[1747971389366,5.42432391,184.34,184.31,0.03777814]
[1747971389968,5.4246,184.33,184.31,0.03777814]
[1747971390167,2.391e-05,184.34,184.31,0.03777814]
[1747971392663,118.22,184.33,184.31,0.03777814]
[1747971392863,121.9812,184.33,184.22,5.62670545]
[1747971393069,123.7962,184.33,184.22,5.62670545]
[1747971393662,5.4262,184.28,184.24,5.4272]
[1747971393862,0.03968312,184.29,184.26,0.0354099]
[1747971394163,5.426,184.28,184.26,0.0354099]
[1747971395064,5.4263,184.27,184.26,0.0354099]
[1747971396573,5.42,184.27,184.16,1.9913]
[1747971396770,118.22,184.28,184.16,1.9913]
[1747971396972,5.428,184.22,184.18,5.4289]
[1747971397271,118.04,184.23,184.16,1.9913]
[1747971397471,0.03745925,184.21,184.18,0.0398675]
[1747971398074,0.03745925,184.21,184.18,5.4687675]
[1747971398572,0.03745925,184.21,184.18,0.0398675]
[1747971399775,0.03745925,184.21,184.19,5.4284]
[1747971400766,0.03745925,184.21,184.2,5.4284]
[1747971400962,0.03745925,184.21,184.18,0.0398675]
[1747971401166,0.03745925,184.21,184.19,5.4286]
[1747971401874,0.03745925,184.21,184.18,0.0398675]
[1747971402969,0.03745925,184.21,184.18,5.4685675]
[1747971403173,0.03745925,184.21,184.18,0.0398675]
[1747971404178,0.03745925,184.21,184.19,5.4287]
[1747971404475,0.03745925,184.21,184.18,0.0398675]
[1747971404679,118.1,184.27,184.18,0.0398675]
[1747971404864,118.1,184.27,184.18,1.9852675]
[1747971405776,0.03940362,184.24,184.18,1.9852675]
[1747971405980,0.03940362,184.24,184.23,5.4275]
[1747971406479,0.03940362,184.24,184.22,5.4277]
[1747971406783,0.03940362,184.24,184.18,1.9852675]
[1747971407580,0.03940362,184.24,184.23,5.4275]
[1747971411084,0.03940362,184.24,184.22,5.4276]
[1747971411876,0.03940362,184.24,184.19,103.14]
[1747971411877,0.03940362,184.24,184.23,5.4275]
[1747971415089,0.03940362,184.24,184.19,103.14]
[1747971415586,5.4286,184.2,184.18,0.0398675]
[1747971416485,118.1,184.21,184.18,5.4687675]
[1747971416889,123.5282,184.21,184.18,5.4687675]
[1747971417088,118.1,184.21,184.18,5.4687675]
[1747971417284,118.1,184.21,184.18,0.0398675]
[1747971417490,5.4286,184.19,184.18,0.0398675]
[1747971418379,1.9288,184.2,184.12,5.4306]
[1747971418787,1.9288,184.2,184.09,103.14]
[1747971419490,5.46900999,184.16,184.13,5.46741525]
[1747971419690,118.15920999,184.16,184.13,0.03701525]
[1747971419993,118.15920999,184.16,184.15,5.4298]
[1747971420894,118.15920999,184.16,184.14,5.43]
[1747971421393,118.15920999,184.16,184.13,0.03701525]
[1747971421690,0.03920999,184.16,184.15,5.4298]
[1747971423688,118.14,184.22,184.21,5.4281]
[1747971424085,118.14,184.22,184.14,1.8769]
[1747971424288,118.14,184.22,184.21,5.4281]
[1747971424681,118.14,184.22,184.15,1.8913]
[1747971424682,0.03783982,184.23,184.22,5.4278]
[1747971424992,0.04000917,184.24,184.2,0.03628399]
[1747971425289,0.04000917,184.24,184.23,5.4275]
[1747971428091,5.4275,184.23,184.2,0.03628399]
[1747971428395,0.04000917,184.24,184.2,0.03628399]
[1747971429391,5.4275,184.23,184.2,0.03628399]
[1747971429594,0.04000917,184.24,184.2,0.03628399]
[1747971430696,0.04000917,184.24,184.22,5.4278]
[1747971430996,0.04000917,184.24,184.2,0.03628399]
[1747971431296,0.04000917,184.24,184.23,5.4275]
[1747971432696,0.04000917,184.24,184.2,0.03628399]
[1747971434696,5.4275,184.23,184.2,0.03628399]
[1747971435597,5.46730917,184.24,184.2,5.46458399]
[1747971435795,0.04000917,184.24,184.2,0.03628399]
[1747971436096,5.46720917,184.24,184.2,5.46458399]
[1747971436401,0.04000917,184.24,184.2,0.03628399]
[1747971437098,5.4275,184.23,184.2,0.03628399]
[1747971437796,5.46730917,184.24,184.2,0.03628399]
[1747971438298,5.46730917,184.24,184.2,5.46438399]
[1747971439091,0.04000917,184.24,184.2,0.03628399]
[1747971439690,5.428,184.22,184.2,0.03628399]
[1747971439892,0.04000917,184.24,184.2,0.03628399]
[1747971440798,0.04000917,184.24,184.23,5.4275]
[1747971440995,118.02,184.29,184.2,0.03628399]
[1747971441195,118.02,184.29,184.21,4.82411017]
[1747971441797,118.02,184.29,184.26,5.4265]
[1747971442001,118.05451473,184.29,184.26,5.46505084]
[1747971442199,118.05451473,184.29,184.26,0.03855084]
[1747971442500,118.05451473,184.29,184.21,4.22895246]
[1747971442702,1.9942,184.28,184.21,4.22895246]
[1747971442895,5.4278,184.22,184.21,4.22895246]
[1747971443102,123.4478,184.22,184.21,4.22895246]
[1747971444502,5.4281,184.21,184.2,0.03768445]
[1747971446707,5.4281,184.21,184.2,8.445e-05]
[1747971446999,5.42,184.21,184.14,4.22895246]
[1747971447199,119.9825,184.22,184.14,4.22895246]
[1747971447797,119.9825,184.22,184.16,0.04092299]
[1747971448099,5.4292,184.17,184.16,0.04092299]
[1747971450206,123.4492,184.17,184.16,0.04092299]
[1747971450999,5.4307,184.13,184.09,9.66055246]
[1747971451199,5.4307,184.13,184.09,4.22895246]
[1747971451708,5.4307,184.13,184.1,5.431]
[1747971451904,5.4307,184.13,184.1,5.46815207]
[1747971452206,5.4708525,184.13,184.1,5.46815207]
[1747971452411,0.0401525,184.13,184.12,5.4307]
[1747971452600,118.02,184.17,184.1,0.03715207]
[1747971453406,123.4493,184.17,184.1,4.26610453]
[1747971453601,0.03546119,184.15,184.1,4.26610453]
[1747971454511,0.03546119,184.15,184.13,5.4302]
[1747971454808,0.03546119,184.15,184.1,4.26610453]
[1747971455112,0.03546119,184.15,184.11,5.4309]
[1747971455607,5.4301,184.14,184.11,5.4309]
[1747971455809,0.03546119,184.15,184.1,4.26610453]
[1747971455810,0.03546119,184.15,184.1,9.69730453]
[1747971456312,5.4307,184.13,184.1,4.26610453]
[1747971457412,0.03546119,184.15,184.1,4.26610453]
[1747971457413,0.03546119,184.15,184.1,0.03715207]
[1747971458303,0.03546119,184.15,184.11,5.431]
[1747971458515,5.4302,184.14,184.11,5.431]
[1747971458708,0.03546119,184.15,184.1,0.03715207]
[1747971459005,0.03546119,184.15,184.12,5.4307]
[1747971459205,5.4302,184.14,184.12,5.4307]
[1747971459413,5.4302,184.14,184.11,5.4307]
[1747971460413,0.03546119,184.15,184.1,0.03715207]
[1747971461604,5.431,184.11,184.1,0.03715207]
[1747971461805,118.04,184.11,184.1,0.03715207]
[1747971462111,118.04,184.11,184.1,5.46845207]
[1747971464205,118.04,184.11,184.1,0.03715207]
[1747971465312,0.03546119,184.15,184.1,0.03715207]
[1747971465508,118.07546119,184.15,184.1,0.03715207]
[1747971465709,123.50546119,184.15,184.12,5.4305]
[1747971466111,0.03546119,184.15,184.1,0.03715207]
[1747971466413,118.07546119,184.15,184.1,0.03715207]
[1747971467114,118.07546119,184.15,184.14,5.4301]
[1747971467512,118.07546119,184.15,184.1,0.03715207]
[1747971468010,123.50546119,184.15,184.12,5.4305]
[1747971468516,123.50546119,184.15,184.11,5.431]
[1747971468715,5.4302,184.14,184.11,5.431]
[1747971470718,123.50536119,184.15,184.12,5.4307]
[1747971471421,118.07546119,184.15,184.11,5.4309]
[1747971472119,118.07546119,184.15,184.1,0.03715207]
[1747971473721,5.431,184.11,184.1,0.03715207]
[1747971475724,118.07546119,184.15,184.1,0.03715207]
[1747971476222,5.4307,184.13,184.1,0.03715207]
[1747971476911,5.4308,184.12,184.1,0.03715207]
[1747971477520,5.4304,184.13,184.1,0.03715207]
[1747971477724,118.07546119,184.15,184.1,0.03715207]
[1747971479925,5.431,184.11,184.1,0.03715207]
[1747971480627,5.4324,184.07,184.03,4.22895246]
[1747971481024,118.06,184.09,184.03,4.22895246]
[1747971481619,0.0388753,184.08,184.04,0.04090813]
[1747971482022,0.0388753,184.08,184.07,5.4319]
[1747971483121,118.06,184.13,184.12,5.4307]
[1747971484829,118.06,184.13,184.11,0.03612026]
[1747971485431,118.06,184.13,184.11,5.46692026]
[1747971485731,118.06,184.13,184.11,0.03612026]
[1747971485926,0.03929841,184.14,184.13,5.4304]
[1747971486233,0.03929841,184.14,184.11,0.03612026]
[1747971486627,5.4307,184.12,184.11,0.03612026]
[1747971486831,0.03929841,184.14,184.11,0.03612026]
[1747971487534,5.4307,184.12,184.11,0.03612026]
[1747971488028,5.4306,184.13,184.11,0.03612026]
[1747971488235,0.03929841,184.14,184.11,0.03612026]
[1747971489739,5.4307,184.12,184.11,0.03612026]
[1747971490338,5.4305,184.13,184.11,0.03612026]
[1747971490638,0.03929841,184.14,184.11,0.03612026]
[1747971491039,5.4304,184.13,184.11,0.03612026]
[1747971491239,0.03929841,184.14,184.11,0.03612026]
[1747971492040,5.4307,184.13,184.11,0.03612026]
[1747971492341,0.03929841,184.14,184.11,0.03612026]
[1747971492643,5.4304,184.13,184.11,0.03612026]
[1747971492844,5.4304,184.13,184.11,5.46712026]
[1747971493046,0.03929841,184.14,184.11,5.46712026]
[1747971493247,0.03929841,184.14,184.11,0.03612026]
[1747971493442,0.03929841,184.14,184.11,5.46692026]
[1747971493646,5.46959841,184.14,184.11,5.46692026]
[1747971493948,0.03929841,184.14,184.11,5.46692026]
[1747971494138,0.03929841,184.14,184.11,0.03612026]
[1747971494445,5.4307,184.12,184.11,0.03612026]
[1747971495145,0.03929841,184.14,184.11,5.46692026]
[1747971495440,5.46959841,184.14,184.11,5.46692026]
[1747971495639,5.46959841,184.14,184.11,0.03612026]
[1747971495838,0.03929841,184.14,184.11,0.03612026]
[1747971496845,5.4304,184.13,184.11,0.03612026]
[1747971497048,0.03929841,184.14,184.11,5.46712026]
[1747971498143,0.03929841,184.14,184.11,0.03612026]
[1747971498838,0.03929841,184.14,184.12,5.4305]
[1747971499041,0.03929841,184.14,184.11,0.03612026]
[1747971499444,5.46949841,184.14,184.11,5.46692026]
[1747971500357,5.46949841,184.14,184.12,5.4307]
[1747971500651,5.46949841,184.14,184.11,0.03612026]
[1747971500837,5.4305,184.13,184.11,0.03612026]
[1747971501242,0.03929841,184.14,184.11,0.03612026]
[1747971502446,5.46969841,184.14,184.11,5.46712026]
[1747971502648,0.03929841,184.14,184.11,0.03612026]
[1747971503054,5.46959841,184.14,184.11,5.46702026]
[1747971503349,0.03929841,184.14,184.11,0.03612026]
[1747971503555,0.03929841,184.14,184.13,5.4304]
[1747971507150,0.03929841,184.14,184.12,5.4306]
[1747971507356,0.03929841,184.14,184.11,0.03612026]
[1747971507544,5.4304,184.13,184.11,0.03612026]
[1747971507745,0.03929841,184.14,184.11,0.03612026]
[1747971508147,5.4307,184.12,184.11,0.03612026]
[1747971510655,118.0,184.13,184.11,0.03612026]
[1747971512053,5.4307,184.12,184.11,0.03612026]
[1747971513861,118.0,184.13,184.11,0.03612026]
[1747971514546,0.03929841,184.14,184.13,5.4304]
[1747971515053,0.03929841,184.14,184.12,5.4306]
[1747971515355,0.03929841,184.14,184.11,0.03612026]
[1747971515654,0.03929841,184.14,184.13,5.4304]
[1747971516752,0.03929841,184.14,184.11,0.03612026]
[1747971517546,5.4304,184.13,184.11,0.03612026]
[1747971517750,0.03929841,184.14,184.11,0.03612026]
[1747971517957,5.4307,184.12,184.11,0.03612026]
[1747971518257,0.03929841,184.14,184.11,0.03612026]
[1747971518557,5.4307,184.12,184.11,0.03612026]
[1747971519259,0.03929841,184.14,184.11,0.03612026]
[1747971520159,5.4307,184.12,184.11,0.03612026]
[1747971520352,123.4107,184.12,184.11,0.03612026]
[1747971536070,123.4107,184.12,184.11,2.026e-05]
[1747971542973,117.98,184.12,184.11,2.026e-05]
[1747971543673,0.03929841,184.14,184.11,2.026e-05]
[1747971543975,0.03929841,184.14,184.13,5.4304]
[1747971544879,124.77637348,184.16,184.15,5.4298]
[1747971545279,6.77637348,184.16,184.11,2.026e-05]
[1747971545672,117.98,184.2,184.11,2.026e-05]
[1747971545873,5.429,184.18,184.11,2.026e-05]
[1747971546080,0.04134452,184.17,184.13,5.4302]
[1747971546980,0.04134452,184.17,184.11,105.13092026]
[1747971547186,0.04134452,184.17,184.11,2.026e-05]
[1747971548282,0.04134452,184.17,184.11,5.43092026]
[1747971548475,0.04134452,184.17,184.11,2.026e-05]
[1747971549687,5.4302,184.14,184.11,5.43082026]
[1747971549881,5.4302,184.14,184.11,2.026e-05]
[1747971550081,5.4303,184.14,184.11,2.026e-05]
[1747971552087,0.04134452,184.17,184.11,2.026e-05]
[1747971552792,5.4302,184.14,184.11,2.026e-05]
[1747971553292,0.04134452,184.17,184.11,2.026e-05]
[1747971554386,5.4303,184.14,184.11,5.43092026]
[1747971554687,0.04134452,184.17,184.11,2.026e-05]
[1747971556187,5.47064452,184.17,184.14,5.43]
[1747971556394,0.04134452,184.17,184.11,2.026e-05]
[1747971556696,5.4297,184.16,184.13,5.4302]
[1747971557192,0.04134452,184.17,184.11,2.026e-05]
[1747971558594,5.4298,184.16,184.13,5.4303]
[1747971558892,0.04134452,184.17,184.11,2.026e-05]
[1747971559600,5.4296,184.16,184.13,5.4303]
[1747971560297,5.47064452,184.17,184.13,5.4303]
[1747971560497,0.04134452,184.17,184.11,2.026e-05]
[1747971561503,0.04134452,184.17,184.14,5.4299]
[1747971561698,0.04134452,184.17,184.11,2.026e-05]
[1747971561998,0.04134452,184.17,184.15,5.4296]
[1747971562398,5.47054452,184.17,184.11,2.026e-05]
[1747971562599,5.47054452,184.17,184.14,5.4298]
[1747971562801,0.04134452,184.17,184.11,2.026e-05]
[1747971563699,0.04134452,184.17,184.14,5.4299]
[1747971563900,5.47064452,184.17,184.14,5.4299]
[1747971564704,0.04134452,184.17,184.15,5.4298]
[1747971565398,0.04134452,184.17,184.16,5.4295]
[1747971565902,0.04134452,184.17,184.15,5.4297]
[1747971566705,0.04134452,184.17,184.11,117.88002026]
[1747971566898,0.04134452,184.17,184.11,119.86432026]
[1747971567096,0.04134452,184.17,184.12,1.8561]
[1747971567604,0.04134452,184.17,184.16,5.4295]
[1747971568298,0.04134452,184.17,184.15,5.4298]
[1747971568496,0.04134452,184.17,184.12,4.82774292]
[1747971568799,0.04134452,184.17,184.11,119.86432026]
[1747971569905,0.04134452,184.17,184.16,5.4295]
[1747971581610,117.76,184.25,184.16,4.82774292]
[1747971581815,123.1871,184.25,184.17,105.1887]
[1747971582116,117.76,184.25,184.23,5.4275]
[1747971582311,117.76,184.25,184.17,105.1887]
[1747971582511,117.76,184.25,184.17,107.1904]
[1747971582713,0.04121014,184.23,184.19,0.03592155]
[1747971583216,0.04121014,184.23,184.22,5.4278]
[1747971584316,0.04121014,184.23,184.21,5.428]
[1747971584821,0.04121014,184.23,184.22,5.4278]
[1747971585822,0.04121014,184.23,184.19,0.03592155]
[1747971586223,0.04121014,184.23,184.22,5.4278]
[1747971593626,1.014e-05,184.23,184.22,5.4278]
[1747971593828,117.76,184.29,184.21,122.54774292]
[1747971594027,121.5409,184.33,184.21,122.54774292]
[1747971594228,121.5409,184.33,184.29,5.4257]
[1747971594433,121.5409,184.33,184.25,103.14]
[1747971594635,117.72,184.33,184.25,103.14]
[1747971594835,0.03767771,184.31,184.3,5.4254]
[1747971595334,0.03767771,184.31,184.29,5.4256]
[1747971595730,0.03767771,184.31,184.27,0.03633041]
[1747971595936,0.03767771,184.31,184.3,5.4254]
[1747971596233,117.72,184.37,184.3,4.82774292]
[1747971596436,117.72,184.37,184.35,5.4238]
[1747971596634,129.80606022,184.41,184.33,103.14]
[1747971596939,5.4237,184.36,184.33,108.5644]
[1747971597234,0.03793636,184.36,184.33,108.60481923]
[1747971598139,0.03793636,184.36,184.34,5.4241]
[1747971599139,0.03793636,184.36,184.35,5.4239]
[1747971600242,0.03793636,184.36,184.34,5.424]
[1747971600538,0.03793636,184.36,184.33,103.18041923]
[1747971600839,0.03793636,184.36,184.35,5.4239]
[1747971606134,0.03793636,184.36,184.34,5.4241]
[1747971606543,0.03793636,184.36,184.33,103.18041923]
[1747971606739,0.03793636,184.36,184.35,5.4239]
[1747971608044,117.72,184.41,184.4,5.4225]
[1747971608238,117.72,184.41,184.34,4.82774292]
[1747971608438,121.5229,184.45,184.34,4.82774292]
[1747971608638,5.4218,184.43,184.39,5.4227]
[1747971609146,5.4218,184.43,184.39,5.46249827]
[1747971609344,5.422,184.42,184.39,0.03979827]
[1747971609845,5.4217,184.43,184.4,5.4224]